[Event "Live Chess"]
[Site "Chess.com"]
[Date "2023.05.20"]
[Round "-"]
[White "TKDRyan"]
[Black "boilerboy1"]
[Result "0-1"]
[WhiteElo "1153"]
[BlackElo "1064"]
[TimeControl "300"]
[EndTime "9:21:05 PDT"]
[Termination "boilerboy1 won by checkmate"]

1. e4 {[%clk 0:04:56.7]} 1... e5 {[%clk 0:04:58.6]} 2. Nf3 {[%clk 0:04:56.1]}
2... d6 {[%clk 0:04:56.4]} 3. d4 {[%clk 0:04:55.5]} 3... exd4 {[%clk 0:04:54.7]}
4. Nxd4 {[%clk 0:04:55.4]} 4... Nf6 {[%clk 0:04:53.5]} 5. Nc3 {[%clk 0:04:53.6]}
5... Be7 {[%clk 0:04:52]} 6. Bd3 {[%clk 0:04:50.8]} 6... c6 {[%clk 0:04:50.4]}
7. Nf3 {[%clk 0:04:49]} 7... Bg4 {[%clk 0:04:48.2]} 8. O-O {[%clk 0:04:47.2]}
8... O-O {[%clk 0:04:46.3]} 9. h3 {[%clk 0:04:46.7]} 9... Bh5 {[%clk 0:04:44.6]}
10. Be3 {[%clk 0:04:44.2]} 10... Nbd7 {[%clk 0:04:42.4]} 11. Be2 {[%clk
0:04:40.5]} 11... b5 {[%clk 0:04:32.3]} 12. a3 {[%clk 0:04:34.1]} 12... a5
{[%clk 0:04:25.2]} 13. b4 {[%clk 0:04:31.2]} 13... axb4 {[%clk 0:04:23.5]} 14.
axb4 {[%clk 0:04:30.4]} 14... Rxa1 {[%clk 0:04:21.2]} 15. Qxa1 {[%clk
0:04:29.3]} 15... Nb6 {[%clk 0:04:11.9]} 16. Qa6 {[%clk 0:04:22.2]} 16... d5
{[%clk 0:03:59.2]} 17. Bxb6 {[%clk 0:04:18]} 17... Qa8 {[%clk 0:03:50.7]} 18.
Qxa8 {[%clk 0:04:11.4]} 18... Rxa8 {[%clk 0:03:48]} 19. exd5 {[%clk 0:04:11]}
19... Bxb4 {[%clk 0:03:45.1]} 20. Nb1 {[%clk 0:03:56.3]} 20... Nxd5 {[%clk
0:03:40.6]} 21. Be3 {[%clk 0:03:41.5]} 21... Nxe3 {[%clk 0:03:38.2]} 22. fxe3
{[%clk 0:03:40.2]} 22... Bc5 {[%clk 0:03:32.2]} 23. Nd4 {[%clk 0:03:31.2]} 23...
Bxe2 {[%clk 0:03:26.2]} 24. Re1 {[%clk 0:03:22.1]} 24... Bc4 {[%clk 0:03:23.6]}
25. c3 {[%clk 0:03:19.7]} 25... h6 {[%clk 0:03:12.3]} 26. Nd2 {[%clk 0:03:16.9]}
26... Bd5 {[%clk 0:03:03.6]} 27. N2f3 {[%clk 0:03:14.1]} 27... Ra3 {[%clk
0:02:58.1]} 28. e4 {[%clk 0:03:03.8]} 28... Bc4 {[%clk 0:02:52.3]} 29. Ne5
{[%clk 0:03:00.4]} 29... Rxc3 {[%clk 0:02:45.6]} 30. Nxc4 {[%clk 0:02:55]} 30...
Bxd4+ {[%clk 0:02:42.8]} 31. Kh1 {[%clk 0:02:51.3]} 31... Rxc4 {[%clk
0:02:41.9]} 32. e5 {[%clk 0:02:50.5]} 32... b4 {[%clk 0:02:29.4]} 33. e6 {[%clk
0:02:49.1]} 33... fxe6 {[%clk 0:02:28.1]} 34. Rxe6 {[%clk 0:02:47.9]} 34... Rc1+
{[%clk 0:02:25.4]} 35. Kh2 {[%clk 0:02:45]} 35... c5 {[%clk 0:02:24.3]} 36. g4
{[%clk 0:02:41.6]} 36... b3 {[%clk 0:02:22]} 37. h4 {[%clk 0:02:40.3]} 37... b2
{[%clk 0:02:19.3]} 38. g5 {[%clk 0:02:36.8]} 38... Rc2+ {[%clk 0:02:17.2]} 39.
Kg3 {[%clk 0:02:35]} 39... hxg5 {[%clk 0:02:16.3]} 40. hxg5 {[%clk 0:02:33.7]}
40... b1=Q {[%clk 0:02:14.8]} 41. g6 {[%clk 0:02:33.3]} 41... Qg1+ {[%clk
0:02:07.2]} 42. Kf3 {[%clk 0:02:31.7]} 42... Rc3+ {[%clk 0:02:01.8]} 43. Kf4
{[%clk 0:02:26.2]} 43... Be3+ {[%clk 0:01:55.7]} 44. Ke4 {[%clk 0:02:18.2]}
44... Qg4+ {[%clk 0:01:51.3]} 45. Kd5 {[%clk 0:02:15.2]} 45... Qxe6+ {[%clk
0:01:43.4]} 46. Kxe6 {[%clk 0:02:13.2]} 46... c4 {[%clk 0:01:41.8]} 47. Kd5
{[%clk 0:02:10.9]} 47... Rc1 {[%clk 0:01:37.5]} 48. Ke4 {[%clk 0:02:10.2]} 48...
Bg5 {[%clk 0:01:34]} 49. Kf3 {[%clk 0:02:08.3]} 49... c3 {[%clk 0:01:32.8]} 50.
Ke2 {[%clk 0:02:08]} 50... c2 {[%clk 0:01:30.9]} 51. Kd3 {[%clk 0:02:07]} 51...
Bf6 {[%clk 0:01:27.2]} 52. Kd2 {[%clk 0:02:05.4]} 52... Rg1 {[%clk 0:01:22.6]}
53. Kxc2 {[%clk 0:02:03.8]} 53... Rxg6 {[%clk 0:01:21.5]} 54. Kd3 {[%clk
0:02:02.9]} 54... Rg5 {[%clk 0:01:19]} 55. Ke4 {[%clk 0:02:02.4]} 55... Kf7
{[%clk 0:01:17.7]} 56. Kf4 {[%clk 0:02:01.2]} 56... Ke6 {[%clk 0:01:16.4]} 57.
Kf3 {[%clk 0:01:59.8]} 57... g6 {[%clk 0:01:14]} 58. Kf4 {[%clk 0:01:58.6]}
58... Kd5 {[%clk 0:01:09.8]} 59. Kf3 {[%clk 0:01:57.3]} 59... Kd4 {[%clk
0:01:08.4]} 60. Kf4 {[%clk 0:01:56]} 60... Rg1 {[%clk 0:01:05.7]} 61. Kf3 {[%clk
0:01:54.9]} 61... g5 {[%clk 0:01:04.1]} 62. Kf2 {[%clk 0:01:53.7]} 62... Ra1
{[%clk 0:01:00.6]} 63. Kg3 {[%clk 0:01:52.3]} 63... Be5+ {[%clk 0:00:59.8]} 64.
Kg4 {[%clk 0:01:51.2]} 64... Bf4 {[%clk 0:00:59.1]} 65. Kf3 {[%clk 0:01:49.6]}
65... Kd3 {[%clk 0:00:57.9]} 66. Kg4 {[%clk 0:01:48.7]} 66... Kd2 {[%clk
0:00:56.3]} 67. Kf3 {[%clk 0:01:48]} 67... Ra3+ {[%clk 0:00:53.9]} 68. Kf2
{[%clk 0:01:40.7]} 68... g4 {[%clk 0:00:49.2]} 69. Kg2 {[%clk 0:01:39.4]} 69...
Rg3+ {[%clk 0:00:46.6]} 70. Kf2 {[%clk 0:01:38.1]} 70... Rh3 {[%clk 0:00:44.9]}
71. Kg2 {[%clk 0:01:37.1]} 71... Rg3+ {[%clk 0:00:40.4]} 72. Kf2 {[%clk
0:01:34.6]} 72... Rf3+ {[%clk 0:00:36.9]} 73. Kg2 {[%clk 0:01:33.8]} 73... Ke3
{[%clk 0:00:34.8]} 74. Kg1 {[%clk 0:01:32.4]} 74... Ke2 {[%clk 0:00:30.2]} 75.
Kg2 {[%clk 0:01:31.6]} 75... Rg3+ {[%clk 0:00:28.8]} 76. Kh2 {[%clk 0:01:30.3]}
76... Rh3+ {[%clk 0:00:27.2]} 77. Kg2 {[%clk 0:01:29.8]} 77... Bb8 {[%clk
0:00:19.5]} 78. Kg1 {[%clk 0:01:28.5]} 78... g3 {[%clk 0:00:17.9]} 79. Kg2
{[%clk 0:01:27.8]} 79... Rh2+ {[%clk 0:00:15.5]} 80. Kg1 {[%clk 0:01:26.5]}
80... Kf3 {[%clk 0:00:08.3]} 81. Kf1 {[%clk 0:01:22.9]} 81... g2+ {[%clk
0:00:07.2]} 82. Kg1 {[%clk 0:01:21.7]} 82... Rh1# {[%clk 0:00:06.1]} 0-1

[Event "Live Chess"]
[Site "Chess.com"]
[Date "2023.05.20"]
[Round "-"]
[White "Balu13"]
[Black "Hacker_2009"]
[Result "0-1"]
[WhiteElo "832"]
[BlackElo "1928"]
[TimeControl "300"]
[EndTime "9:21:07 PDT"]
[Termination "Hacker_2009 won by resignation"]

1. e4 {[%clk 0:04:56.4]} 1... c5 {[%clk 0:04:58.8]} 2. Nf3 {[%clk 0:04:53.9]}
2... d6 {[%clk 0:04:58]} 3. d4 {[%clk 0:04:42.9]} 3... cxd4 {[%clk 0:04:57.9]}
4. Nxd4 {[%clk 0:04:41.7]} 4... Nf6 {[%clk 0:04:57.8]} 5. Nc3 {[%clk 0:04:39.1]}
5... a6 {[%clk 0:04:56.6]} 6. Bf4 {[%clk 0:04:25.6]} 6... e5 {[%clk 0:04:53.3]}
7. Nf5 {[%clk 0:03:43.6]} 7... exf4 {[%clk 0:04:51.2]} 8. Nxd6+ {[%clk
0:03:36.3]} 8... Qxd6 {[%clk 0:04:49.7]} 9. Qf3 {[%clk 0:03:23.8]} 9... Nc6
{[%clk 0:04:46]} 10. Rd1 {[%clk 0:03:14.6]} 10... Qc7 {[%clk 0:04:44.1]} 11. Bc4
{[%clk 0:03:02.8]} 11... Bg4 {[%clk 0:04:37.5]} 12. Nd5 {[%clk 0:02:34.2]} 12...
Qa5+ {[%clk 0:04:33.2]} 13. b4 {[%clk 0:02:22.8]} 13... Bxb4+ {[%clk 0:04:30.3]}
0-1

[Event "Live Chess"]
[Site "Chess.com"]
[Date "2023.05.20"]
[Round "-"]
[White "Bot_Boy"]
[Black "MarkLim1"]
[Result "0-1"]
[WhiteElo "333"]
[BlackElo "1626"]
[TimeControl "300"]
[EndTime "9:21:08 PDT"]
[Termination "MarkLim1 won on time"]

1. Nf3 {[%clk 0:04:57.2]} 1... Nf6 {[%clk 0:04:58.8]} 2. e3 {[%clk 0:04:53.8]}
2... d5 {[%clk 0:04:57.6]} 3. d4 {[%clk 0:04:51.3]} 3... c5 {[%clk 0:04:56.3]}
4. Bb5+ {[%clk 0:04:45.4]} 4... Bd7 {[%clk 0:04:54.8]} 5. Bxd7+ {[%clk
0:04:44.1]} 5... Qxd7 {[%clk 0:04:53.9]} 6. Ne5 {[%clk 0:04:40]} 6... Qc7 {[%clk
0:04:50.5]} 7. Nf3 {[%clk 0:04:22.2]} 7... cxd4 {[%clk 0:04:43.8]} 8. Nxd4
{[%clk 0:04:16.2]} 8... e5 {[%clk 0:04:41.9]} 9. Ne2 {[%clk 0:04:14.5]} 9... Bd6
{[%clk 0:04:38.6]} 10. O-O {[%clk 0:04:00.1]} 10... Nbd7 {[%clk 0:04:28]} 11. c3
{[%clk 0:03:47.5]} 11... O-O {[%clk 0:04:26.4]} 12. f3 {[%clk 0:03:29.7]} 12...
Rad8 {[%clk 0:04:19.1]} 13. Nd2 {[%clk 0:03:19.7]} 13... Rfe8 {[%clk 0:04:17.7]}
14. Rf2 {[%clk 0:03:00.7]} 14... Qb6 {[%clk 0:04:09.3]} 15. Nf1 {[%clk
0:02:49.7]} 15... e4 {[%clk 0:04:04.4]} 16. f4 {[%clk 0:02:41.9]} 16... Ng4
{[%clk 0:04:02.7]} 17. b3 {[%clk 0:02:11]} 17... Nxf2 {[%clk 0:03:57.7]} 18.
Kxf2 {[%clk 0:02:07.6]} 18... Nf6 {[%clk 0:03:56.8]} 19. h3 {[%clk 0:02:02.7]}
19... a5 {[%clk 0:03:53.6]} 20. Kg1 {[%clk 0:02:00.7]} 20... Nh5 {[%clk
0:03:49.3]} 21. Qe1 {[%clk 0:01:50.7]} 21... Nxf4 {[%clk 0:03:47.2]} 22. a4
{[%clk 0:01:09.2]} 22... Nd3 {[%clk 0:03:38.8]} 23. Qh4 {[%clk 0:00:54.8]} 23...
Qxb3 {[%clk 0:03:35.7]} 24. Nd4 {[%clk 0:00:32.3]} 24... Qxc3 {[%clk 0:03:30.5]}
25. Bd2 {[%clk 0:00:22.2]} 25... Qc7 {[%clk 0:03:24.1]} 26. Nf5 {[%clk
0:00:18.8]} 26... Re6 {[%clk 0:03:14.5]} 27. g3 {[%clk 0:00:13]} 27... Rg6
{[%clk 0:03:08.4]} 28. g4 {[%clk 0:00:10.8]} 28... Ne5 {[%clk 0:03:00.7]} 29.
Nxd6 {[%clk 0:00:08.4]} 29... Nf3+ {[%clk 0:02:57.3]} 30. Kf2 {[%clk 0:00:02.6]}
30... Nxh4 {[%clk 0:02:49.5]} 0-1

[Event "Live Chess"]
[Site "Chess.com"]
[Date "2023.05.20"]
[Round "-"]
[White "SirEntrails"]
[Black "vinni3012"]
[Result "0-1"]
[WhiteElo "504"]
[BlackElo "1868"]
[TimeControl "300"]
[EndTime "9:21:10 PDT"]
[Termination "vinni3012 won by resignation"]

1. e4 {[%clk 0:04:58.8]} 1... c6 {[%clk 0:04:58.9]} 2. Nf3 {[%clk 0:04:57.7]}
2... d5 {[%clk 0:04:58.8]} 3. Nc3 {[%clk 0:04:52.3]} 3... dxe4 {[%clk
0:04:36.9]} 4. Nxe4 {[%clk 0:04:50.1]} 4... Nf6 {[%clk 0:04:36.8]} 5. Nxf6+
{[%clk 0:04:48.8]} 5... exf6 {[%clk 0:04:36.7]} 6. Bc4 {[%clk 0:04:43]} 6... Bd6
{[%clk 0:04:35.3]} 7. d3 {[%clk 0:04:41.5]} 7... O-O {[%clk 0:04:33.8]} 8. O-O
{[%clk 0:04:40.3]} 8... Bg4 {[%clk 0:04:27.7]} 9. Re1 {[%clk 0:04:38.3]} 9...
Nd7 {[%clk 0:04:26.3]} 10. h3 {[%clk 0:04:22.8]} 10... Bxf3 {[%clk 0:04:18.5]}
11. Qxf3 {[%clk 0:04:21]} 11... Ne5 {[%clk 0:04:17.7]} 12. Qh5 {[%clk
0:04:06.3]} 12... Nxc4 {[%clk 0:04:13.2]} 13. dxc4 {[%clk 0:04:04.7]} 13... Qc7
{[%clk 0:03:56.1]} 14. g3 {[%clk 0:03:56.3]} 14... Rfe8 {[%clk 0:03:46.4]} 15.
Rxe8+ {[%clk 0:03:41.3]} 15... Rxe8 {[%clk 0:03:44.1]} 16. Bd2 {[%clk
0:03:39.8]} 16... Bxg3 {[%clk 0:03:33.6]} 17. fxg3 {[%clk 0:03:34]} 17... Qxg3+
{[%clk 0:03:32.2]} 18. Kf1 {[%clk 0:03:26.8]} 18... Qh2 {[%clk 0:03:28.7]} 19.
Bf4 {[%clk 0:03:20.2]} 19... Qh1+ {[%clk 0:03:20.5]} 20. Kf2 {[%clk 0:03:17.4]}
20... Qxa1 {[%clk 0:03:18.9]} 21. Qg4 {[%clk 0:03:14.6]} 21... Qe1+ {[%clk
0:03:14.1]} 22. Kg2 {[%clk 0:03:10]} 22... Qe2+ {[%clk 0:03:12]} 23. Kg3 {[%clk
0:03:08.7]} 23... Qxg4+ {[%clk 0:03:11]} 24. hxg4 {[%clk 0:03:07.4]} 24... Re2
{[%clk 0:03:09.7]} 25. g5 {[%clk 0:02:58.6]} 25... fxg5 {[%clk 0:03:06.6]} 26.
Bxg5 {[%clk 0:02:57.8]} 26... Rxc2 {[%clk 0:03:05.4]} 27. Kf4 {[%clk 0:02:42.2]}
27... Rxb2 {[%clk 0:03:02.7]} 28. Ke5 {[%clk 0:02:40]} 28... Rxa2 {[%clk
0:03:00.3]} 29. Kd6 {[%clk 0:02:38.8]} 29... Rc2 {[%clk 0:02:56.5]} 30. Ke7
{[%clk 0:02:36.7]} 30... Rxc4 {[%clk 0:02:52.3]} 31. Kd7 {[%clk 0:02:33.2]}
31... a5 {[%clk 0:02:48.1]} 32. Kc7 {[%clk 0:02:31.6]} 32... a4 {[%clk
0:02:47.2]} 33. Kxb7 {[%clk 0:02:30.8]} 33... a3 {[%clk 0:02:46.3]} 34. Bf6
{[%clk 0:02:26.6]} 34... gxf6 {[%clk 0:02:44.1]} 35. Kc7 {[%clk 0:02:23.2]}
35... a2 {[%clk 0:02:42.8]} 0-1

[Event "Live Chess"]
[Site "Chess.com"]
[Date "2023.05.20"]
[Round "-"]
[White "akp42"]
[Black "OSmith06"]
[Result "0-1"]
[WhiteElo "1968"]
[BlackElo "1746"]
[TimeControl "300"]
[EndTime "9:21:12 PDT"]
[Termination "OSmith06 won by resignation"]

1. e4 {[%clk 0:04:59.1]} 1... c6 {[%clk 0:04:58.2]} 2. d4 {[%clk 0:04:57.2]}
2... d5 {[%clk 0:04:58.1]} 3. exd5 {[%clk 0:04:52]} 3... cxd5 {[%clk 0:04:58]}
4. Bd3 {[%clk 0:04:51.2]} 4... Nc6 {[%clk 0:04:56.5]} 5. c3 {[%clk 0:04:49.5]}
5... e5 {[%clk 0:04:51.8]} 6. dxe5 {[%clk 0:04:42.4]} 6... Nxe5 {[%clk
0:04:51.7]} 7. Qe2 {[%clk 0:04:41.3]} 7... Qe7 {[%clk 0:04:37.4]} 8. Bb5+ {[%clk
0:04:37.2]} 8... Bd7 {[%clk 0:04:34.1]} 9. Bf4 {[%clk 0:04:30.8]} 9... Bxb5
{[%clk 0:04:16.8]} 10. Qxb5+ {[%clk 0:04:28.7]} 10... Nc6+ {[%clk 0:04:11.9]}
11. Ne2 {[%clk 0:04:27.3]} 11... Nf6 {[%clk 0:04:00.4]} 12. O-O {[%clk
0:04:25.5]} 12... a6 {[%clk 0:03:55.9]} 13. Qd3 {[%clk 0:04:19.5]} 13... g6
{[%clk 0:03:42.7]} 14. Nd2 {[%clk 0:03:56.6]} 14... Bg7 {[%clk 0:03:39]} 15.
Rfe1 {[%clk 0:03:55.3]} 15... O-O {[%clk 0:03:34.3]} 16. Nd4 {[%clk 0:03:54.3]}
16... Qd7 {[%clk 0:03:20.2]} 17. N2f3 {[%clk 0:03:53.1]} 17... Ne4 {[%clk
0:03:12.4]} 18. Rad1 {[%clk 0:03:46.3]} 18... Nxd4 {[%clk 0:03:04.1]} 19. Nxd4
{[%clk 0:03:44.7]} 19... Rfe8 {[%clk 0:02:52.6]} 20. f3 {[%clk 0:03:42.3]} 20...
Nc5 {[%clk 0:02:45.8]} 21. Qd2 {[%clk 0:03:37]} 21... Rxe1+ {[%clk 0:02:39.7]}
22. Rxe1 {[%clk 0:03:35.5]} 22... Re8 {[%clk 0:02:32.9]} 23. Rxe8+ {[%clk
0:03:19.5]} 23... Qxe8 {[%clk 0:02:32.8]} 24. Qe3 {[%clk 0:03:14.8]} 24... Qxe3+
{[%clk 0:02:25.8]} 25. Bxe3 {[%clk 0:03:13.8]} 25... Nd3 {[%clk 0:02:23.5]} 26.
b3 {[%clk 0:03:12.8]} 26... Bxd4 {[%clk 0:02:18.4]} 27. Bxd4 {[%clk 0:03:11.1]}
27... Nc1 {[%clk 0:02:15.4]} 28. Kf2 {[%clk 0:02:57.9]} 28... Nxa2 {[%clk
0:02:13.2]} 29. Ke2 {[%clk 0:02:55.1]} 29... Nc1+ {[%clk 0:02:09.9]} 30. Kd2
{[%clk 0:02:52.5]} 30... Nxb3+ {[%clk 0:02:09.1]} 31. Kc2 {[%clk 0:02:51.6]}
31... Nxd4+ {[%clk 0:02:08.2]} 32. cxd4 {[%clk 0:02:50.1]} 32... b5 {[%clk
0:02:07]} 33. Kb3 {[%clk 0:02:49.7]} 33... a5 {[%clk 0:02:06.4]} 0-1

[Event "Live Chess"]
[Site "Chess.com"]
[Date "2023.05.20"]
[Round "-"]
[White "amazinggoalkeeper"]
[Black "Goblinbasher"]
[Result "0-1"]
[WhiteElo "499"]
[BlackElo "1204"]
[TimeControl "300"]
[EndTime "9:21:15 PDT"]
[Termination "Goblinbasher won by checkmate"]

1. e4 {[%clk 0:04:59]} 1... c5 {[%clk 0:04:58.1]} 2. Bc4 {[%clk 0:04:56.9]} 2...
e6 {[%clk 0:04:56.7]} 3. e5 {[%clk 0:04:55.6]} 3... Nc6 {[%clk 0:04:55.6]} 4.
Nc3 {[%clk 0:04:46.5]} 4... Nxe5 {[%clk 0:04:50.4]} 5. Bb3 {[%clk 0:04:42.1]}
5... a6 {[%clk 0:04:45]} 6. Nf3 {[%clk 0:04:39]} 6... Qc7 {[%clk 0:04:39.8]} 7.
Qe2 {[%clk 0:04:36.8]} 7... Nxf3+ {[%clk 0:04:31.5]} 8. Qxf3 {[%clk 0:04:33.1]}
8... Nf6 {[%clk 0:04:30.5]} 9. Ne4 {[%clk 0:04:30.6]} 9... Be7 {[%clk
0:04:26.5]} 10. d3 {[%clk 0:04:15.4]} 10... O-O {[%clk 0:04:18.5]} 11. Nxf6+
{[%clk 0:04:13.9]} 11... Bxf6 {[%clk 0:04:16.9]} 12. O-O {[%clk 0:04:13.5]}
12... d5 {[%clk 0:04:11.4]} 13. g3 {[%clk 0:04:12.3]} 13... b5 {[%clk 0:04:09]}
14. c3 {[%clk 0:04:10.8]} 14... Bb7 {[%clk 0:04:07.8]} 15. Bc2 {[%clk
0:04:10.3]} 15... Rad8 {[%clk 0:03:59.5]} 16. Qg2 {[%clk 0:04:09.2]} 16... d4
{[%clk 0:03:52.2]} 17. Qh3 {[%clk 0:04:06.3]} 17... dxc3 {[%clk 0:03:46.7]} 18.
bxc3 {[%clk 0:04:04.3]} 18... Bxc3 {[%clk 0:03:40]} 19. Rb1 {[%clk 0:04:00.8]}
19... g6 {[%clk 0:03:28.1]} 20. d4 {[%clk 0:04:00.7]} 20... Bxd4 {[%clk
0:03:25.1]} 21. Be3 {[%clk 0:03:49.5]} 21... Qc6 {[%clk 0:03:23.1]} 22. Bxd4
{[%clk 0:03:46.6]} 22... Qh1# {[%clk 0:03:21.5]} 0-1

[Event "Live Chess"]
[Site "Chess.com"]
[Date "2023.05.20"]
[Round "-"]
[White "HonestJoe1"]
[Black "Olisingapore"]
[Result "1-0"]
[WhiteElo "2122"]
[BlackElo "1950"]
[TimeControl "300"]
[EndTime "9:21:18 PDT"]
[Termination "HonestJoe1 won by resignation"]

1. d4 {[%clk 0:04:55.9]} 1... Nf6 {[%clk 0:04:59]} 2. c4 {[%clk 0:04:54.7]} 2...
e6 {[%clk 0:04:58.2]} 3. g3 {[%clk 0:04:53.5]} 3... d5 {[%clk 0:04:54.5]} 4. Bg2
{[%clk 0:04:52]} 4... Be7 {[%clk 0:04:50.8]} 5. Nf3 {[%clk 0:04:50.4]} 5... O-O
{[%clk 0:04:50.1]} 6. O-O {[%clk 0:04:49.2]} 6... dxc4 {[%clk 0:04:49.4]} 7. Ne5
{[%clk 0:04:47.7]} 7... b5 {[%clk 0:04:42.9]} 8. Bxa8 {[%clk 0:04:45.8]} 8...
Nbd7 {[%clk 0:04:30.4]} 9. Nc6 {[%clk 0:04:41.1]} 9... Qe8 {[%clk 0:04:27.6]}
10. Nxe7+ {[%clk 0:04:39.9]} 10... Qxe7 {[%clk 0:04:26.3]} 11. Bg2 {[%clk
0:04:38]} 11... Nb6 {[%clk 0:04:23.3]} 12. Bg5 {[%clk 0:04:36.1]} 12... h6
{[%clk 0:04:21.9]} 13. Bxf6 {[%clk 0:04:35]} 13... Qxf6 {[%clk 0:04:20.8]} 14.
Nc3 {[%clk 0:04:34.5]} 14... Rd8 {[%clk 0:04:15.1]} 15. Nxb5 {[%clk 0:04:28.2]}
1-0

[Event "Live Chess"]
[Site "Chess.com"]
[Date "2023.05.20"]
[Round "-"]
[White "Krishtwist2013gmailc"]
[Black "defenderalist"]
[Result "0-1"]
[WhiteElo "724"]
[BlackElo "1595"]
[TimeControl "300"]
[EndTime "9:21:18 PDT"]
[Termination "defenderalist won by checkmate"]

1. e4 {[%clk 0:04:55.9]} 1... c5 {[%clk 0:04:52.7]} 2. d4 {[%clk 0:04:53.9]}
2... cxd4 {[%clk 0:04:51.7]} 3. Qxd4 {[%clk 0:04:52.6]} 3... Nc6 {[%clk
0:04:51.6]} 4. Qd1 {[%clk 0:04:50.6]} 4... e6 {[%clk 0:04:51.3]} 5. Nc3 {[%clk
0:04:49.5]} 5... Bb4 {[%clk 0:04:50.5]} 6. Bd3 {[%clk 0:04:48.5]} 6... Nf6
{[%clk 0:04:49]} 7. Bd2 {[%clk 0:04:47.6]} 7... O-O {[%clk 0:04:47.2]} 8. f3
{[%clk 0:04:46.9]} 8... d5 {[%clk 0:04:45.4]} 9. a3 {[%clk 0:04:43.5]} 9... Ba5
{[%clk 0:04:42.9]} 10. b4 {[%clk 0:04:42]} 10... Bb6 {[%clk 0:04:41.6]} 11. exd5
{[%clk 0:04:39.7]} 11... Nxd5 {[%clk 0:04:38.5]} 12. Nxd5 {[%clk 0:04:37.5]}
12... Qxd5 {[%clk 0:04:36.7]} 13. Ne2 {[%clk 0:04:30.9]} 13... Nd4 {[%clk
0:04:29.8]} 14. Nxd4 {[%clk 0:04:29.1]} 14... Qxd4 {[%clk 0:04:27.7]} 15. c3
{[%clk 0:04:24.1]} 15... Qf2# {[%clk 0:04:25.9]} 0-1

[Event "Live Chess"]
[Site "Chess.com"]
[Date "2023.05.20"]
[Round "-"]
[White "DorothyDawn"]
[Black "white59867"]
[Result "1-0"]
[WhiteElo "459"]
[BlackElo "100"]
[TimeControl "300"]
[EndTime "9:21:22 PDT"]
[Termination "DorothyDawn won by resignation"]

1. e4 {[%clk 0:04:57.2]} 1... d5 {[%clk 0:04:59.7]} 2. d3 {[%clk 0:04:51.7]}
2... h5 {[%clk 0:04:51.7]} 3. Nf3 {[%clk 0:04:49.2]} 3... Bg4 {[%clk 0:04:48.1]}
4. Be2 {[%clk 0:04:44.1]} 4... dxe4 {[%clk 0:04:44.4]} 5. dxe4 {[%clk
0:04:41.4]} 5... Qxd1+ {[%clk 0:04:38.6]} 6. Kxd1 {[%clk 0:04:39]} 6... Nc6
{[%clk 0:04:29.5]} 7. Bf4 {[%clk 0:04:35.2]} 7... Rd8+ {[%clk 0:04:28.5]} 8.
Nbd2 {[%clk 0:04:32]} 8... g6 {[%clk 0:04:14]} 9. Bxc7 {[%clk 0:04:30.3]} 9...
Bg7 {[%clk 0:04:10.9]} 10. Bxd8 {[%clk 0:04:28.9]} 10... Nxd8 {[%clk 0:04:07.1]}
11. h3 {[%clk 0:04:21.2]} 11... Nf6 {[%clk 0:04:06.7]} 12. hxg4 {[%clk
0:04:19.4]} 12... hxg4 {[%clk 0:04:04.7]} 13. Rxh8+ {[%clk 0:04:15.1]} 13... Kd7
{[%clk 0:04:00.5]} 14. Rh1 {[%clk 0:04:08]} 1-0

[Event "Live Chess"]
[Site "Chess.com"]
[Date "2023.05.20"]
[Round "-"]
[White "seabuck"]
[Black "yeetpizza74"]
[Result "1-0"]
[WhiteElo "1830"]
[BlackElo "447"]
[TimeControl "300"]
[EndTime "9:21:23 PDT"]
[Termination "seabuck won by checkmate"]

1. d4 {[%clk 0:04:58.1]} 1... e5 {[%clk 0:04:56.3]} 2. dxe5 {[%clk 0:04:55.6]}
2... Nc6 {[%clk 0:04:54.9]} 3. Nf3 {[%clk 0:04:54.5]} 3... Qe7 {[%clk
0:04:53.5]} 4. g3 {[%clk 0:04:46.5]} 4... Nxe5 {[%clk 0:04:49]} 5. Bg2 {[%clk
0:04:43.8]} 5... Nxf3+ {[%clk 0:04:45.7]} 6. Bxf3 {[%clk 0:04:42.5]} 6... d6
{[%clk 0:04:35.2]} 7. O-O {[%clk 0:04:35.3]} 7... c6 {[%clk 0:04:30.5]} 8. c4
{[%clk 0:04:23.2]} 8... Bf5 {[%clk 0:04:15.5]} 9. e4 {[%clk 0:04:08.3]} 9...
Bxe4 {[%clk 0:04:10.6]} 10. Bxe4 {[%clk 0:04:05.9]} 10... Qxe4 {[%clk
0:04:09.3]} 11. Re1 {[%clk 0:04:05]} 11... Qxe1+ {[%clk 0:04:06]} 12. Qxe1+
{[%clk 0:04:03.5]} 12... Be7 {[%clk 0:04:02.5]} 13. Nc3 {[%clk 0:03:59.2]} 13...
Nf6 {[%clk 0:03:59.9]} 14. Bg5 {[%clk 0:03:56.8]} 14... O-O {[%clk 0:03:55.7]}
15. Qxe7 {[%clk 0:03:52.3]} 15... Rae8 {[%clk 0:03:48.7]} 16. Qxd6 {[%clk
0:03:48.3]} 16... Ne4 {[%clk 0:03:45.6]} 17. Nxe4 {[%clk 0:03:45.8]} 17... Rxe4
{[%clk 0:03:43.1]} 18. Be3 {[%clk 0:03:42.1]} 18... Rxc4 {[%clk 0:03:38.7]} 19.
Bxa7 {[%clk 0:03:37.6]} 19... Re4 {[%clk 0:03:31.3]} 20. Be3 {[%clk 0:03:32.7]}
20... Ree8 {[%clk 0:03:29.3]} 21. Rd1 {[%clk 0:03:30.9]} 21... h6 {[%clk
0:03:16.9]} 22. Rd4 {[%clk 0:03:19.7]} 22... Kh7 {[%clk 0:03:02.6]} 23. Rh4
{[%clk 0:03:10.9]} 23... Rd8 {[%clk 0:02:52.9]} 24. Qe5 {[%clk 0:02:59.1]} 24...
f6 {[%clk 0:02:42.1]} 25. Qf5+ {[%clk 0:02:56.5]} 25... g6 {[%clk 0:02:37.9]}
26. Rxh6+ {[%clk 0:02:51.9]} 26... Kg7 {[%clk 0:02:34.7]} 27. Qxg6# {[%clk
0:02:50.8]} 1-0